bitfinex-derivatives/quotes_SOLF0:USTF0_20260104
["timestamp","ask_amount","ask_price","bid_price","bid_amount"]
[1767560892769,107.05373251,134.17,134.07,7.03424027]
[1767560892963,5.628429,134.16,134.07,7.03424027]
[1767560893164,5.628429,134.15,134.07,7.03424027]
[1767560893364,5.628429,134.14,134.07,7.03424027]
[1767560893565,6.7117,134.14,134.07,7.03424027]
[1767560893767,6.7117,134.14,134.08,0.32374856]
[1767560898374,6.7117,134.14,134.09,0.32374856]
[1767560902174,6.7112,134.16,134.09,0.32374856]
[1767560905778,6.7112,134.16,134.09,7.03794856]
[1767560913286,6.7112,134.16,134.1,6.7136]
[1767560916083,6.7098,134.18,134.12,0.33412979]
[1767560916480,2.67063251,134.21,134.12,0.33412979]
[1767560916680,5.62616966,134.2,134.12,0.33412979]
[1767560916875,5.62616966,134.19,134.12,0.33412979]
[1767560917088,6.7092,134.19,134.13,0.33412979]
[1767560918181,6.7085,134.21,134.13,0.33412979]
[1767560918487,5.62283651,134.2,134.13,0.33412979]
[1767560918694,6.7085,134.21,134.13,0.33412979]
[1767560918990,5.62275646,134.2,134.13,0.33412979]
[1767560919288,6.7085,134.21,134.13,0.33412979]
[1767560919675,6.7085,134.21,134.14,6.7117]
[1767560920995,2.67063251,134.24,134.16,0.33412979]
[1767560921185,5.618657,134.23,134.16,0.33412979]
[1767560921489,2.67063251,134.24,134.16,0.33412979]
[1767560921790,5.61577573,134.23,134.16,0.33412979]
[1767560921989,2.67063251,134.24,134.16,0.33412979]
[1767560922196,5.61332126,134.23,134.16,0.33412979]
[1767560922387,2.67063251,134.24,134.16,0.33412979]
[1767560922690,12.32059061,134.23,134.16,0.33412979]
[1767560922890,6.7073,134.23,134.16,0.33412979]
[1767560923792,6.7073,134.23,134.16,7.04472979]
[1767560925788,6.7073,134.23,134.16,0.33412979]
[1767560926885,6.7078,134.22,134.16,0.33412979]
[1767560930194,106.98533251,134.26,134.16,0.33412979]
[1767560930493,142.32020719,134.28,134.17,0.33412979]
[1767560930494,122.6008397,134.28,134.17,0.33412979]
[1767560930706,5.59915397,134.27,134.18,0.33412979]
[1767560930997,6.7056,134.27,134.19,7.04322979]
[1767560931185,6.7056,134.27,134.2,0.33412979]
[1767560931996,6.7058,134.26,134.2,0.33412979]
[1767560934893,6.7058,134.26,134.18,0.33412979]
[1767560935101,6.7063,134.25,134.18,0.33412979]
[1767560941097,106.97733251,134.27,134.17,88.04]
[1767560942303,6.7066,134.25,134.17,88.04]
[1767560942504,6.7066,134.25,134.18,0.31870515]
[1767560942901,6.7069,134.24,134.18,0.31870515]
[1767560947005,6.7073,134.23,134.17,88.04]
[1767560948009,6.7073,134.23,134.16,0.31870515]
[1767560949115,6.7066,134.25,134.17,0.31870515]
[1767560949403,15.63180719,134.28,134.18,0.31870515]
[1767560949609,15.63180719,134.28,134.2,0.31870515]
[1767560950204,6.7052,134.27,134.2,7.02740515]
[1767560957613,6.7052,134.27,134.21,0.31870515]
[1767560958206,6.7051,134.28,134.21,0.31870515]
[1767560960412,6.7053,134.27,134.21,0.31870515]
[1767560962713,1.70560002,134.29,134.21,0.31870515]
[1767560963614,6.7048,134.28,134.21,0.31870515]
[1767560965214,104.2676,134.32,134.21,0.31870515]
[1767560965409,1.70560002,134.3,134.21,0.31870515]
[1767560966215,6.7045,134.29,134.22,0.31870515]
[1767560969521,6.7045,134.29,134.23,0.31870515]
[1767560970114,105.96760002,134.33,134.24,0.31870515]
[1767560970315,5.61576193,134.32,134.24,0.31870515]
[1767560970517,105.96760002,134.33,134.24,0.31870515]
[1767560970718,5.61443138,134.32,134.24,0.31870515]
[1767560970917,105.96760002,134.33,134.24,0.31870515]
[1767560971118,5.61443138,134.32,134.24,0.31870515]
[1767560971321,105.96760002,134.33,134.24,0.31870515]
[1767560971517,6.7037,134.3,134.24,7.02540515]
[1767560971823,1.70560002,134.34,134.25,0.32755062]
[1767560972120,5.6136253,134.33,134.25,0.32755062]
[1767560972328,5.6136253,134.32,134.25,0.32755062]
[1767560972527,1.70560002,134.34,134.25,0.32755062]
[1767560972726,5.61314717,134.33,134.25,0.32755062]
[1767560972915,1.70560002,134.34,134.25,0.32755062]
[1767560973222,5.61287611,134.33,134.25,0.32755062]
[1767560973528,6.7032,134.31,134.25,7.03365062]
[1767560973728,1.70560002,134.34,134.25,7.03365062]
[1767560973923,5.61220671,134.33,134.25,7.03365062]
[1767560974123,1.70560002,134.34,134.25,7.03365062]
[1767560974326,1.70560002,134.32,134.25,7.03365062]
[1767560975430,1.70560002,134.33,134.25,7.03365062]
[1767560975726,6.7028,134.32,134.25,7.03365062]
[1767560980329,8.40780002,134.34,134.26,0.33885661]
[1767560981123,6.7022,134.34,134.26,0.33885661]
[1767560981323,6.7023,134.33,134.26,0.33885661]
[1767560981519,1.70560002,134.33,134.24,2.04445663]
[1767560982028,1.70560002,134.33,134.24,0.33885661]
[1767560982528,6.7032,134.31,134.24,7.04525661]
[1767560982727,1.70560002,134.34,134.25,0.33885661]
[1767560983320,1.70560002,134.34,134.23,0.33885661]
[1767560983321,1.70560002,134.3,134.23,0.33885661]
[1767560984430,1.70560002,134.31,134.23,0.33885661]
[1767560985529,6.7047,134.28,134.23,0.33885661]
[1767560989732,104.2918,134.29,134.19,88.0]
[1767560989937,1.70560002,134.27,134.18,0.33885661]
[1767560990228,1.70560002,134.26,134.18,0.33885661]
[1767560992538,6.7063,134.25,134.18,0.33885661]
[1767560994233,8.41240002,134.24,134.18,0.33885661]
[1767560996141,8.41240002,134.24,134.17,337.86026748]
[1767560997334,6.7073,134.23,134.17,337.86026748]
[1767560997541,6.7073,134.23,134.17,338.19912409]
[1767560999238,1.70560002,134.24,134.17,88.33885661]
[1767560999239,6.7078,134.22,134.17,88.33885661]
[1767560999544,1.70560002,134.22,134.15,0.33885661]
[1767561000637,6.7084,134.21,134.15,0.33885661]
[1767561006343,6.7088,134.2,134.14,88.02]
[1767561006741,6.7088,134.2,134.14,88.34591044]
[1767561008547,6.7088,134.2,134.14,0.32591044]
[1767561013753,6.7081,134.22,134.15,0.32591044]
[1767561014053,106.02360002,134.26,134.17,0.32591044]
[1767561014452,6.7071,134.24,134.17,0.32591044]
[1767561014651,1.70560002,134.27,134.19,0.32591044]
[1767561014853,1.70560002,134.29,134.21,0.32591044]
[1767561015055,6.7048,134.28,134.21,0.32591044]
[1767561015355,104.2818,134.3,134.21,0.32591044]
[1767561016656,6.7053,134.27,134.21,0.32591044]
[1767561016968,88.04,134.32,134.22,0.32591044]
[1767561018249,6.7038,134.3,134.23,6.7071]
[1767561018460,6.7038,134.3,134.23,7.03301044]
[1767561018970,6.7038,134.3,134.23,0.32591044]
[1767561019170,6.7045,134.29,134.23,0.32591044]
[1767561021669,6.7034,134.31,134.23,0.32591044]
[1767561022461,88.04,134.32,134.23,0.32591044]
[1767561022670,16.8759727,134.35,134.25,0.32591044]
[1767561023573,23.5772727,134.35,134.25,7.03201044]
[1767561027664,23.5772727,134.35,134.26,0.32591044]
[1767561031070,106.91497032,134.34,134.24,0.32835496]
[1767561032580,6.7027,134.33,134.24,0.32835496]
[1767561033077,2.66467032,134.32,134.22,0.32835496]
[1767561033384,90.66467032,134.32,134.22,0.32835496]
[1767561034783,6.7035,134.31,134.22,0.32835496]
[1767561035283,6.7039,134.3,134.22,0.32835496]
[1767561037383,90.66467032,134.32,134.22,0.32835496]
[1767561037590,90.66467032,134.32,134.23,0.32163988]
[1767561037591,94.7029,134.32,134.23,0.32163988]
[1767561041189,94.7029,134.32,134.24,0.32163988]
[1767561042380,6.7029,134.32,134.24,0.32163988]
[1767561042691,6.7029,134.32,134.25,0.32163988]
[1767561044787,6.702,134.34,134.25,6.7061]
[1767561044993,6.702,134.34,134.26,0.32163988]
[1767561045194,6.702,134.34,134.27,0.32163988]
[1767561055298,6.7022,134.33,134.27,0.32163988]
[1767561060910,16.8759727,134.35,134.28,0.3187821]
[1767561061301,16.8759727,134.35,134.29,6.704]
[1767561061502,0.31384888,134.45,134.34,2.66467032]
[1767561061704,0.31384888,134.44,134.31,106.93717032]
[1767561061907,0.31384888,134.44,134.32,192.2404]
[1767561062101,0.31384888,134.42,134.34,104.2483]
[1767561062414,104.106,134.53,134.38,106.87937032]
[1767561062710,104.106,134.53,134.32,4.14467032]
[1767561062711,6.6924,134.53,134.42,9.36237032]
[1767561062909,6.6924,134.53,134.4,104.2016]
[1767561062910,104.0971,134.54,134.43,87.98]
[1767561063104,110.8038,134.52,134.41,9.36277032]
[1767561063409,104.1183,134.51,134.39,250.39806398]
[1767561063609,104.1183,134.51,134.4,87.96]
[1767561063610,6.6941,134.5,134.4,87.96]
[1767561063908,104.1264,134.5,134.4,87.96]
[1767561064099,104.1421,134.48,134.39,250.39806398]
[1767561064298,0.31384888,134.46,134.39,250.39806398]
[1767561065106,0.31384888,134.44,134.32,104.2608]
[1767561065306,0.31384888,134.44,134.33,87.96]
[1767561065608,0.31384888,134.44,134.32,104.2608]
[1767561065812,0.31384888,134.44,134.33,87.96]
[1767561066616,0.31384888,134.43,134.33,94.6621]
[1767561070623,0.31384888,134.42,134.33,6.7021]
[1767561070819,0.31384888,134.42,134.34,87.94]
[1767561071118,0.31384888,134.41,134.28,104.2916]
[1767561071424,0.31384888,134.41,134.29,87.94]
[1767561071622,6.699,134.4,134.3,6.7035]
[1767561071822,0.31384888,134.39,134.3,6.7035]
[1767561073607,0.31384888,134.41,134.31,104.2716]
[1767561073815,0.31384888,134.43,134.33,104.2569]
[1767561074016,0.31384888,134.43,134.34,87.92]
[1767561075120,0.31384888,134.43,134.34,94.6214]
[1767561075519,0.31384888,134.43,134.34,87.92]
[1767561076128,0.31384888,134.4,134.32,6.7025]
[1767561076427,0.31384888,134.4,134.33,87.92]
[1767561076722,0.31384888,134.4,134.32,87.92]
[1767561078322,0.31384888,134.39,134.32,87.92]
[1767561086134,7.01314888,134.39,134.32,87.92]
[1767561088035,0.31384888,134.37,134.31,87.92]
[1767561089729,0.31384888,134.37,134.31,94.6231]
[1767561089934,0.31384888,134.39,134.31,94.6231]
[1767561091433,7.03442846,134.38,134.31,94.6231]
[1767561093447,7.03492846,134.37,134.31,87.92]
[1767561097742,6.6997,134.39,134.31,89.62280948]
[1767561098544,6.6997,134.39,134.32,6.7026]
[1767561099242,6.6997,134.39,134.32,8.40540948]
[1767561099943,0.33898058,134.42,134.34,1.70280948]
[1767561100342,7.03618058,134.44,134.37,6.7001]
[1767561102735,0.33898058,134.44,134.38,6.6996]
[1767561104450,7.03508058,134.46,134.39,6.699]
[1767561104844,0.33898058,134.45,134.39,6.699]
[1767561106239,0.33898058,134.47,134.4,6.6986]
[1767561107247,7.03428058,134.47,134.4,6.6986]
[1767561108044,0.33898058,134.45,134.38,8.40210948]
[1767561108450,0.33898058,134.45,134.38,6.6993]
[1767561108750,0.33898058,134.45,134.38,8.40210948]
[1767561109753,7.03528058,134.45,134.38,8.40210948]
[1767561117056,6.6967,134.44,134.38,1.70280948]
[1767561117268,0.33898058,134.45,134.37,87.92]
[1767561117855,0.33898058,134.43,134.37,1.70280948]
[1767561118161,0.33898058,134.43,134.37,8.40290948]
[1767561120864,6.6962,134.46,134.39,1.70280948]
[1767561121064,7.08060169,134.46,134.39,1.70280948]
[1767561122658,7.08060169,134.46,134.39,8.40190948]
[1767561124259,7.08060169,134.46,134.39,6.6991]
[1767561124467,7.08060169,134.46,134.39,8.40190948]
[1767561126568,0.38440169,134.46,134.4,6.6986]
[1767561126958,0.38440169,134.46,134.41,6.6982]
[1767561127160,0.38440169,134.49,134.41,1.70280948]
[1767561127854,0.38440169,134.49,134.43,1.70280948]
[1767561128261,0.38440169,134.49,134.41,1.70280948]
[1767561128566,0.38440169,134.49,134.43,6.6971]
[1767561132573,0.38440169,134.48,134.4,87.88]
[1767561133660,7.07970169,134.47,134.4,94.5786]
[1767561135274,6.6957,134.46,134.4,6.6986]
[1767561140971,0.38440169,134.45,134.37,2.65724999]
[1767561141183,0.38440169,134.45,134.37,87.88]
[1767561141882,0.38440169,134.43,134.37,94.58]
[1767561143080,0.38440169,134.42,134.37,87.88]
[1767561144493,0.38440169,134.42,134.33,359.53231699]
[1767561144685,0.38440169,134.42,134.36,6.7007]
[1767561145683,7.08220169,134.42,134.34,94.5813]
[1767561145880,0.38440169,134.41,134.34,94.5813]
[1767561147081,7.08280169,134.41,134.34,87.88]
[1767561147389,0.38440169,134.4,134.34,87.88]
[1767561151489,0.38440169,134.4,134.33,259.324367]
[1767561151691,0.38440169,134.4,134.34,87.9]
[1767561156000,6.6984,134.41,134.34,87.9]
[1767561156498,7.09647578,134.41,134.34,87.9]
[1767561159897,6.6988,134.4,134.34,87.9]
[1767561160099,0.39807578,134.41,134.34,87.9]
[1767561161602,6.6993,134.39,134.34,87.9]
[1767561163404,7.09737578,134.39,134.34,87.9]
[1767561167310,6.6999,134.38,134.34,87.9]
[1767561170608,6.7002,134.37,134.27,2.65724999]
[1767561170904,6.7002,134.37,134.26,104.3089]
[1767561170905,0.39807578,134.37,134.28,87.92]
[1767561171107,0.39807578,134.37,134.26,104.3089]
[1767561171407,0.39807578,134.37,134.27,87.92]
[1767561172202,0.39807578,134.36,134.27,87.92]
[1767561173413,6.7018,134.34,134.27,94.6251]
[1767561173613,6.7018,134.34,134.27,87.92]
[1767561174600,0.39807578,134.35,134.27,94.6251]
[1767561175312,7.09967578,134.35,134.27,94.6251]
[1767561178216,6.7018,134.34,134.27,87.92]
[1767561178615,6.7023,134.33,134.27,87.92]
[1767561179321,7.09947578,134.35,134.27,87.92]
[1767561180620,6.7018,134.34,134.27,87.92]
[1767561181411,0.39807578,134.35,134.27,94.625]
[1767561182120,7.09937578,134.35,134.27,94.625]
[1767561183009,6.7018,134.34,134.27,6.705]
[1767561183321,6.7018,134.34,134.27,94.645]
[1767561188124,0.39807578,134.35,134.28,6.7047]
[1767561189526,7.09937578,134.35,134.28,6.7047]
[1767561190225,6.7017,134.34,134.27,87.94]
[1767561190619,6.7009,134.36,134.29,6.7042]
[1767561194429,7.11052568,134.37,134.3,6.7036]
[1767561194832,0.40992568,134.37,134.3,6.7036]
[1767561196534,6.7007,134.36,134.3,6.7036]
[1767561199437,0.40992568,134.35,134.28,6.7043]
[1767561200431,0.40992568,134.35,134.29,6.7042]
[1767561200732,6.7007,134.36,134.29,6.7042]
[1767561203737,0.40992568,134.37,134.3,6.7037]
[1767561205437,7.11022568,134.37,134.3,6.7037]
[1767561209850,6.7008,134.36,134.28,8.40775951]
[1767561217845,6.7008,134.36,134.29,6.7038]
[1767561218241,7.10288872,134.36,134.29,6.7038]
[1767561218449,0.40208872,134.35,134.29,6.7038]
[1767561221146,0.40208872,134.35,134.27,94.6448]
[1767561221454,0.40208872,134.34,134.27,87.94]
[1767561221842,0.40208872,134.32,134.24,96.34975951]
[1767561222651,0.40208872,134.32,134.25,6.7062]
[1767561223554,7.10488872,134.32,134.25,6.7062]
[1767561226845,7.10588872,134.3,134.24,87.94]
[1767561229560,104.2372,134.36,134.24,87.94]
[1767561229561,176.0,134.45,134.24,89.42]
[1767561229748,5.1816756,134.44,134.35,6.701]
[1767561230053,312.2933,134.54,134.35,6.701]
[1767561230054,0.40208872,134.55,134.43,104.1764]
[1767561230239,0.40208872,134.55,134.41,104.1913]
[1767561230240,2.10554823,134.55,134.44,87.96]
[1767561230442,0.40208872,134.55,134.44,193.83045951]
[1767561230659,0.40208872,134.55,134.45,105.86435951]
[1767561230864,0.40208872,134.55,134.47,104.1433]
[1767561231154,0.40208872,134.55,134.46,105.85605951]
[1767561231356,0.40208872,134.58,134.47,104.1457]
[1767561231559,0.40208872,134.57,134.48,87.96]
[1767561232042,0.40208872,134.57,134.48,193.80155951]
[1767561232455,26.00507216,134.6,134.49,104.1282]
[1767561232650,24.70370137,134.6,134.49,104.1282]
[1767561232856,24.70370137,134.6,134.51,1.70345951]
[1767561233052,0.40208872,134.59,134.52,87.94]
[1767561233250,24.30161265,134.6,134.52,89.64345951]
[1767561233451,0.40208872,134.59,134.53,87.94]
[1767561234253,0.40208872,134.59,134.5,1.70345951]
[1767561234457,0.40208872,134.59,134.51,87.92]
[1767561234843,0.40208872,134.59,134.49,104.1282]
[1767561235054,0.40208872,134.59,134.48,104.1381]
[1767561235055,0.40208872,134.59,134.5,87.92]
[1767561235256,0.40208872,134.59,134.51,1.70345951]
[1767561235558,0.40208872,134.59,134.5,87.92]
[1767561235748,0.40208872,134.59,134.51,1.70345951]
[1767561235948,2.10554823,134.59,134.5,104.122]
[1767561236156,2.10554823,134.59,134.49,112.52695951]
[1767561236462,2.10554823,134.59,134.5,87.9]
[1767561237154,0.40208872,134.59,134.5,87.9]
[1767561237750,1.70345951,134.58,134.49,8.39755951]
[1767561238057,0.40208872,134.57,134.5,87.9]
[1767561238354,0.40208872,134.57,134.51,87.88]
[1767561240257,0.40208872,134.57,134.5,87.86]
[1767561240660,0.50140931,134.55,134.45,6.6961]
[1767561240852,1.70345951,134.54,134.46,87.86]
[1767561241156,0.50140931,134.54,134.46,87.86]
[1767561241362,2.20486882,134.56,134.46,96.25885951]
[1767561241550,2.20486882,134.56,134.46,200.41495951]
[1767561241851,2.20486882,134.56,134.47,6.6948]
[1767561242057,2.20486882,134.56,134.47,110.8433]
[1767561242256,0.50140931,134.56,134.47,110.8433]
[1767561243466,0.50140931,134.54,134.45,6.6962]
[1767561243662,104.0746,134.57,134.41,104.1918]
[1767561243663,2.20486882,134.53,134.46,87.86]
[1767561245168,1.70345951,134.51,134.46,87.86]
[1767561245854,0.50140931,134.52,134.46,87.86]
[1767561246357,0.50140931,134.59,134.48,1.70345951]
[1767561246566,0.50140931,134.59,134.5,1.70345951]
[1767561246861,0.50140931,134.59,134.51,87.86]
[1767561247664,0.50140931,134.58,134.51,87.86]
[1767561248565,0.50140931,134.58,134.51,87.84]
[1767561251164,24.80302196,134.6,134.51,87.84]
[1767561251663,24.30161265,134.6,134.51,87.84]
[1767561251963,24.30161265,134.6,134.51,191.9522]
[1767561252164,24.30161265,134.6,134.53,6.6918]
[1767561252468,24.80302196,134.6,134.51,87.84]
[1767561252964,0.50140931,134.59,134.49,4.16943817]
[1767561253163,0.50140931,134.58,134.46,108.32243817]
[1767561253353,0.50140931,134.58,134.47,87.84]
[1767561253759,0.50140931,134.56,134.47,94.5349]
[1767561254155,104.0682,134.58,134.43,104.1757]
[1767561254156,6.6914,134.55,134.45,6.696]
[1767561254466,104.0742,134.57,134.45,6.696]
[1767561254467,0.50140931,134.54,134.46,87.84]
[1767561255670,7.19330931,134.54,134.46,87.84]
[1767561258570,0.50140931,134.53,134.46,87.84]
[1767561259870,0.50140931,134.52,134.46,87.84]
[1767561261463,0.50140931,134.51,134.46,87.84]
[1767561261868,0.50140931,134.51,134.43,6.6969]
[1767561262068,0.50140931,134.51,134.44,87.84]
[1767561263377,7.19490931,134.51,134.44,87.84]
[1767561263568,6.6935,134.51,134.44,87.84]
[1767561263969,7.19400931,134.53,134.44,87.84]
[1767561265475,6.6929,134.52,134.44,87.84]
[1767561265968,6.6934,134.51,134.44,87.84]
[1767561266276,6.6934,134.51,134.42,87.84]
[1767561266277,0.50140931,134.51,134.42,87.84]
[1767561267671,7.19540931,134.5,134.42,94.5375]
[1767561274579,104.1115,134.52,134.42,94.5375]
[1767561275378,6.6944,134.49,134.42,87.84]
[1767561275577,104.1354,134.49,134.4,6.78350652]
[1767561275880,104.1354,134.49,134.4,87.86]
[1767561276477,0.69164262,134.48,134.4,87.86]
[1767561276677,0.69164262,134.47,134.4,87.86]
[1767561277584,6.6963,134.45,134.4,87.86]
[1767561285989,7.38794262,134.45,134.4,87.86]
[1767561287092,7.38844262,134.44,134.4,87.86]
[1767561287288,2.65644022,134.42,134.29,104.2848]
[1767561287479,0.69164262,134.41,134.3,87.88]
[1767561287683,0.69164262,134.41,134.3,90.53644022]
[1767561288190,7.38994262,134.41,134.32,6.7026]
[1767561288700,0.69164262,134.39,134.3,94.5833]
[1767561288995,104.88364262,134.42,134.3,87.88]
[1767561290194,104.1961,134.41,134.3,87.88]
[1767561290397,0.69164262,134.39,134.3,87.88]
[1767561290895,6.701,134.36,134.3,87.88]
[1767561297592,7.53300408,134.36,134.3,87.88]
[1767561297794,7.53300408,134.36,134.27,2.65644022]
[1767561297996,7.53300408,134.36,134.27,90.57644022]
[1767561299403,7.53300408,134.36,134.27,97.28144022]
[1767561300599,7.53300408,134.36,134.28,6.7046]
[1767561300896,106.86244022,134.4,134.27,196.35734022]
[1767561300897,6.7001,134.38,134.27,196.35734022]
[1767561301095,0.78130873,134.38,134.29,6.7041]
[1767561302602,6.7003,134.37,134.29,6.7041]
[1767561305000,6.701,134.36,134.27,97.28124022]
[1767561305206,0.78130873,134.36,134.27,97.28124022]
[1767561306514,0.78130873,134.38,134.27,194.87754022]
[1767561306915,106.84844022,134.42,134.31,6.7031]
[1767561306916,6.6996,134.39,134.31,6.7031]
[1767561307121,0.78130873,134.42,134.32,87.94]
[1767561307411,0.78130873,134.42,134.33,2.65644022]
[1767561307616,6.6985,134.41,134.33,9.35854022]
[1767561309218,6.6985,134.41,134.34,6.7016]
[1767561309913,0.78130873,134.42,134.33,2.65644022]
[1767561310120,7.47900873,134.43,134.35,6.7011]
[1767561310716,6.6979,134.42,134.35,6.7011]
[1767561311113,7.47920873,134.42,134.35,6.7011]
[1767561311619,6.6983,134.41,134.33,9.35844022]
[1767561311917,6.6983,134.41,134.33,6.702]
[1767561312420,0.78130873,134.42,134.34,6.7016]
[1767561313719,7.47910873,134.42,134.34,6.7016]
[1767561314218,7.47910873,134.42,134.35,6.7011]
[1767561317124,104.167,134.45,134.33,6.7018]
[1767561317125,7.47970873,134.41,134.33,6.7018]
[1767561318826,6.6989,134.4,134.33,6.7018]
[1767561321126,0.78130873,134.39,134.32,87.94]
[1767561321321,0.78130873,134.39,134.29,2.65644022]
[1767561321527,0.78130873,134.39,134.28,87.92]
[1767561322029,7.48170873,134.37,134.29,6.7041]
[1767561322232,0.78130873,134.37,134.28,87.92]
[1767561322524,7.48260873,134.35,134.28,87.92]
[1767561322828,0.78130873,134.34,134.28,87.92]
[1767561323418,0.78130873,134.34,134.25,17.44654024]
[1767561323618,0.78130873,134.34,134.25,105.36654024]
[1767561324223,0.78130873,134.33,134.26,6.7054]
[1767561328243,7.48260873,134.35,134.27,8.4091964]
[1767561328724,7.48190873,134.37,134.29,6.704]
[1767561329034,0.78130873,134.37,134.29,8.4081964]
[1767561329425,0.78130873,134.37,134.3,6.7036]
[1767561330836,6.6996,134.39,134.31,6.7029]
[1767561331134,2.64178859,134.4,134.31,1.7041964]
[1767561332530,2.64178859,134.4,134.32,6.7026]
[1767561332729,9.34058859,134.4,134.32,6.7026]
[1767561332928,0.93759219,134.37,134.29,89.6441964]
[1767561334531,0.93759219,134.37,134.3,6.7036]
[1767561335139,0.95555944,134.36,134.29,87.94]
[1767561336235,0.95555944,134.36,134.29,94.644]
[1767561337441,0.95555944,134.38,134.3,1.7041964]
[1767561338539,0.95555944,134.38,134.31,6.7031]
[1767561339140,0.95555944,134.38,134.31,8.4072964]
[1767561341732,0.95555944,134.37,134.29,6.704]
[1767561342633,7.65585944,134.37,134.29,6.704]
[1767561344934,0.95555944,134.36,134.29,6.704]
[1767561345138,0.95555944,134.35,134.28,87.94]
[1767561346448,0.95555944,134.35,134.29,6.7042]
[1767561346642,0.95555944,134.37,134.29,8.4083964]
[1767561347235,0.95555944,134.35,134.28,87.94]
[1767561347636,0.95555944,134.34,134.28,87.94]
[1767561348747,7.65735944,134.34,134.28,87.94]
[1767561350249,0.95555944,134.34,134.28,87.94]
[1767561352551,7.65735944,134.34,134.28,87.94]
[1767561353752,0.95555944,134.34,134.28,87.94]
[1767561355451,0.95555944,134.38,134.28,89.6441964]
[1767561356555,6.7007,134.37,134.3,6.7035]
[1767561358960,0.95555944,134.38,134.3,6.7035]
[1767561359861,7.65575944,134.37,134.29,6.7041]
[1767561360060,0.95555944,134.36,134.28,87.94]
[1767561360259,1.7041964,134.35,134.28,87.94]
[1767561360457,0.98606222,134.34,134.25,107.11073664]
[1767561361465,0.98606222,134.34,134.27,6.7052]
[1767561361664,0.98606222,134.34,134.27,8.4093964]
[1767561362159,0.98606222,134.36,134.26,104.308]
[1767561362365,0.98606222,134.36,134.27,1.7041964]
[1767561362556,0.98606222,134.34,134.25,209.72164024]
[1767561362758,0.98606222,134.34,134.26,1.7041964]
[1767561363460,0.98606222,134.34,134.27,6.7051]
[1767561363864,7.68786222,134.34,134.27,6.7051]
[1767561364869,0.98606222,134.33,134.27,6.7051]
[1767561365270,0.98606222,134.32,134.25,112.11234024]
[1767561365661,7.68766222,134.35,134.27,6.705]
[1767561365860,0.98606222,134.34,134.27,6.705]
[1767561369272,6.7016,134.35,134.28,6.7046]
[1767561369470,0.98606222,134.34,134.25,105.40654024]
[1767561369768,7.68796222,134.34,134.26,8.4094964]
[1767561372074,7.68796222,134.34,134.27,6.7052]
[1767561378480,6.7022,134.33,134.27,6.7052]
[1767561378680,7.68826222,134.33,134.25,107.11073664]
[1767561379173,104.222,134.38,134.27,1.7041964]
[1767561379174,0.98606222,134.38,134.27,1.7041964]
[1767561379371,0.98606222,134.38,134.29,1.7041964]
[1767561379566,0.98606222,134.38,134.29,89.6641964]
[1767561379773,6.6997,134.39,134.31,1.7041964]
[1767561380478,7.68476222,134.4,134.33,8.4063964]
[1767561380878,0.98606222,134.4,134.33,8.4063964]
[1767561384584,0.98606222,134.4,134.33,6.7022]
[1767561384785,0.98606222,134.39,134.31,6.7029]
[1767561386590,7.68536222,134.39,134.31,6.7029]
[1767561388886,7.68596222,134.38,134.31,6.7029]
[1767561389386,0.98606222,134.37,134.29,94.6638]
[1767561389789,0.98606222,134.36,134.29,87.96]
[1767561390582,0.98606222,134.36,134.3,6.7036]
[1767561396194,0.98606222,134.36,134.29,87.96]
[1767561397093,6.7004,134.37,134.29,94.6641]
[1767561397885,7.72286197,134.37,134.29,94.6641]
[1767561402699,7.72286197,134.37,134.3,6.7037]
[1767561404096,1.02246197,134.4,134.29,87.96]
[1767561404304,1.02246197,134.4,134.3,106.94042546]
[1767561405704,1.02246197,134.4,134.33,6.7022]
[1767561408399,7.72116197,134.4,134.33,6.7022]
[1767561412404,7.72116197,134.4,134.34,6.7017]
[1767561423106,1.05355997,134.39,134.32,6.7023]
[1767561424613,6.6997,134.38,134.32,6.7023]
[1767561425008,106.85172546,134.42,134.33,6.7021]
[1767561425210,104.1759,134.44,134.31,104.2718]
[1767561425211,7.75185997,134.41,134.31,104.2718]
[1767561426512,1.05355997,134.4,134.31,104.2718]
[1767561426814,1.05355997,134.4,134.34,6.7012]
[1767561430020,7.75225997,134.4,134.34,6.7012]